Cogmind - Beta 14 @@@ ROGUE MODE // 2025.01.12 @ 15:10:48 Player: JackZewap Result: Destroyed by 39-1ST(R) with Subdweller Beam Cannon Performance ------------- Evolutions (0) 0 Regions Visited (3) 600 Robots Destroyed (13) 65 Value Destroyed (324) 324 Prototype IDs (0) 0 Alien Tech Used (0) 0 Bonus (173) 173 TOTAL SCORE: 1162 Bonus ------- Follower Combat Kills 183 Friendly Fire -10 Cogmind --------- Core Integrity 0/250 Matter 296/300 Energy 149/160 System Corruption 2% Temperature Cool (14) Movement Treading (240) Ox1 Location -10/Subcaves Parts ------- > --- POWER (1) -------- Light Nuclear Core > --- PROPULSION (2) --- Light Treads > --- UTILITY (2) ------ Medium Storage Unit Makeshift Light Armor Plating > --- WEAPON (2) ------- Particle Gun Subdweller Machine Gun > --- INVENTORY (10) --- Light Ion Engine Improved Heat Sink Disposable Heat Sink Humpback Particle Gun Subdweller Laser Makeshift Hammer Piercing Trap Peak State ------------ > --- POWER ------------ Light Nuclear Core > --- PROPULSION ------- Light Treads > --- UTILITY ---------- Medium Storage Unit Makeshift Light Armor Plating > --- WEAPON ----------- Subdweller Laser Makeshift Laser > --- INVENTORY -------- Light Ion Engine Improved Heat Sink Disposable Heat Sink Particle Gun Makeshift Hammer Piercing Trap [Rating: 16] Favorites ----------- Power Light Nuclear Core Engine Subdweller Power Source Power Core Light Nuclear Core Propulsion Light Treads Treads Light Treads Utility Medium Storage Unit Storage Medium Storage Unit Processor Signal Interpreter Protection Makeshift Light Armor Plating Weapon Light Assault Rifle Energy Gun Makeshift Laser Ballistic Gun Light Assault Rifle Build | -11 -10 -10 -10 ------- Run | Yrd Mat Min Sub Slots Evolved . | . . . . Power . | . . . . Propulsion . | . . . . Utility . | . . . . Weapon . | . . . . Parts Attached 16 | 3 4 . 9 Power 3 | . 1 . 2 Engine 1 | . . . 1 Core 2 | . 1 . 1 Reactor . | . . . . Propulsion 3 | 2 . . 1 Treads 3 | 2 . . 1 Leg . | . . . . Wheel . | . . . . Hover . | . . . . Flight . | . . . . Utility 3 | . 2 . 1 Device . | . . . . Storage 1 | . 1 . . Processor 1 | . 1 . . Hackware . | . . . . Protection 1 | . . . 1 Artifact . | . . . . Weapon 7 | 1 1 . 5 Energy Gun 3 | . . . 3 Energy Cannon . | . . . . Ballistic Gun 4 | 1 1 . 2 Ballistic Cannon . | . . . . Launcher . | . . . . Special Weapon . | . . . . Impact Weapon . | . . . . Slashing Weapon . | . . . . Piercing Weapon . | . . . . Special Melee Weapon . | . . . . Unidentified Prototypes . | . . . . Parts Lost 6 | . . . 6 Power 1 | . . . 1 Propulsion 2 | . . . 2 Utility . | . . . . Weapon 3 | . . . 3 Highest Loss Streak 2 | . . . 2 To Critical Strikes . | . . . . Average Slot Usage (%) 84 | . 75 100 83 Engine 1 | . . . 1 Core 3 | . 5 14 1 Treads 24 | . 28 28 23 Storage 13 | . 7 14 14 Processor 12 | . 11 14 12 Energy Gun 6 | . . . 8 Ballistic Gun 20 | . 22 28 19 Peak Build Rating 16 | 3 9 9 16 Average Rating 8 | 2 6 9 8 On Entrance 5 | . 3 9 9 Naked Turns . | . . . . Heaviest Build 26 | 1 18 18 26 Greatest Support 40 | 40 40 40 40 Greatest Overweight (x) 1 | . . . 1 Average Overweight (x) . | . . . . Largest Inventory Capacity 10 | 5 10 10 10 Average Capacity 9 | 5 7 10 10 Most Carried 9 | 1 2 2 9 Average Carried 4 | . 1 2 5 Final Capacity 10 | 5 10 10 10 Final Carried 9 | 1 2 2 9 Class Distribution -------------------- 89% | Mutant 10% | Scavenger-Mutant Dominant Class ---------------- Mutant | -10/Materials Mutant | -10/Mines Mutant | -10/Subcaves Resources | -11 -10 -10 -10 ----------- Run | Yrd Mat Min Sub Matter Collected 516 | 142 178 36 160 Remotely . | . . . . Salvage Created 456 | . 220 49 187 Parts 34 | . 18 6 10 Haulers Intercepted 1 | . 1 . . Recyclers Shooed . | . . . . Parts Field Recycled . | . . . . Retrieved Matter . | . . . . Parts Self-Destructed 6 | . . . 6 Prevented . | . . . . Kills | -11 -10 -10 -10 ------- Run | Yrd Mat Min Sub Combat Hostiles Destroyed 10 | . 3 3 4 Guns 10 | . 3 3 4 Classes Destroyed 6 | . 4 1 1 Worker 1 | . 1 . . Hauler 1 | . 1 . . Watcher 1 | . 1 . . Swarmer 3 | . . 3 . Grunt 3 | . 3 . . Subdweller 4 | . . . 4 Best Kill Streak 3 | . 3 3 1 Combat Bots Only 3 | . 1 3 1 Max Kills in Single Turn 1 | . 1 1 1 Gunslinging . | . . . . Exploded . | . . . . Melee . | . . . . Uniques/NPCs Destroyed . | . . . . Combat | -11 -10 -10 -10 -------- Run | Yrd Mat Min Sub Hostile Shots Fired 96 | . 34 11 51 Missed 29 | . 9 5 15 Damage Taken 1169 | . 319 39 811 Core 269 | . 78 . 191 Absorbed by Shields . | . . . . Core Remaining (%) 100 | 100 . . . Volleys Fired 62 | . 18 5 39 Largest 2 | . 2 2 2 Hottest 110 | . 40 40 110 Shots Fired 118 | . 36 10 72 Gun 118 | . 36 10 72 Cannon . | . . . . Launcher . | . . . . Special . | . . . . Kinetic 82 | . 36 10 36 Thermal 36 | . . . 36 Explosive . | . . . . Electromagnetic . | . . . . Robot Hit Streak 12 | . 6 2 12 Robot Miss Streak 3 | . 2 2 3 Penetration Max . | . . . . Secondary Targets 2 | . . 1 1 Max Gunslinging Chain 1 | . . 1 1 Shots Hit Robots 69 | . 23 5 41 Core Hits 28 | . 12 3 13 Critical Kills . | . . . . Critical Parts Destroyed . | . . . . Critical Strikes 4 | . . . 4 Burn 4 | . . . 4 Melee Attacks . | . . . . Impact . | . . . . Slashing . | . . . . Piercing . | . . . . Sneak Attacks . | . . . . Combat Hostiles . | . . . . Follow-up Attacks . | . . . . Damage Inflicted 1015 | . 235 71 709 Guns 1015 | . 235 71 709 Cannons . | . . . . Explosions . | . . . . Melee . | . . . . Ramming . | . . . . Kinetic 629 | . 235 71 323 Thermal 386 | . . . 386 Explosive . | . . . . Electromagnetic . | . . . . Impact . | . . . . Slashing . | . . . . Piercing . | . . . . Highest Corruption 2 | . 2 2 2 Average Corruption 2 | . 2 2 2 Corruption Purged . | . . . . Corruption Blocked . | . . . . Effects 21 | . . 1 20 Message Errors 8 | . . . 8 Matter Fused 4 | . . . 4 Heat Flow Errors 1 | . . . 1 Energy Discharges 3 | . . . 3 Data Loss (minor) 3 | . . 1 2 Data Loss (major) 1 | . . . 1 Misfires 1 | . . . 1 Overload Shots . | . . . . Overflow Damage . | . . . . Projectiles . | . . . . Explosions . | . . . . Melee . | . . . . Knockbacks . | . . . . Impact . | . . . . Kinetic . | . . . . Secondary . | . . . . Self-Inflicted Damage . | . . . . Shots . | . . . . Rammed . | . . . . Targets Rammed . | . . . . Kicked . | . . . . Crushed . | . . . . Highest Temperature 208 | . 20 8 208 Average Temperature 19 | . 5 3 49 Received Heat Transfer 354 | . 198 . 156 Siege Activations . | . . . . Robots Corrupted . | . . . . Combat Hostiles . | . . . . Parts Fried . | . . . . Impact Corruptions . | . . . . Robots Melted . | . . . . Combat Hostiles . | . . . . Parts Melted 4 | . . . 4 Heat Transferred 965 | . . . 965 Parts Sabotaged . | . . . . Parts Stolen . | . . . . Parts Stripped . | . . . . Power Chain Reactions . | . . . . Alert | -11 -10 -10 -10 ------- Run | Yrd Mat Min Sub Peak Influence 112 | . 110 112 . Initial 42 | . . 42 . Average 62 | . 46 108 . Maximum Alert Level . | . . . . Low Security (%) 100 | 100 100 100 . Level 1 . | . . . . Level 2 . | . . . . Level 3 . | . . . . Level 4 . | . . . . Level 5 . | . . . . High Security . | . . . . Max Security . | . . . . Squads Dispatched 2 | . 2 . . Investigation . | . . . . Extermination . | . . . . Reinforcement 2 | . 2 . . Assault . | . . . . Garrison . | . . . . Intercept . | . . . . Searches Triggered . | . . . . Construction Impeded . | . . . . Haulers Reinforced . | . . . . Active Scanning Responses . | . . . . Cargo Convoy Interrupts . | . . . . Stealth | -11 -10 -10 -10 --------- Run | Yrd Mat Min Sub Distress Signals 1 | . 1 . . Communications Jammed . | . . . . Distress Signals . | . . . . Times Spotted 22 | . 8 3 11 Peak Tracking Total 3 | . 3 3 2 Tactical Retreats 1 | . 1 . . Traps | -11 -10 -10 -10 ------- Run | Yrd Mat Min Sub Traps Triggered 2 | . 1 . 1 Indirectly . | . . . . Trap Hack Attempts . | . . . . Triggered . | . . . . Disarmed . | . . . . Reprogrammed . | . . . . Reused . | . . . . Traps Extracted . | . . . . Installed . | . . . . Triggered . | . . . . Most Traps Carried 1 | . . . 1 Machines | -11 -10 -10 -10 ---------- Run | Yrd Mat Min Sub Machines Disabled . | . . . . Max in Single Turn . | . . . . Machines Repaired . | . . . . Machines Dismantled . | . . . . Machines Sabotaged . | . . . . Overloaded Fab Kills . | . . . . Hacking | -11 -10 -10 -10 --------- Run | Yrd Mat Min Sub Machines Accessed 1 | . 1 . . Terminals 1 | . 1 . . Fabricators . | . . . . Repair Stations . | . . . . Recycling Units . | . . . . Scanalyzers . | . . . . Garrison Access . | . . . . Total Hacks 5 | . 5 . . Successful 1 | . 1 . . Failed 4 | . 4 . . Catastrophic . | . . . . Database Lockouts . | . . . . Manual 4 | . 4 . . Terminals 5 | . 5 . . Fabricators . | . . . . Repair Stations . | . . . . Recycling Units . | . . . . Scanalyzers . | . . . . Garrison Access . | . . . . Terminal Hacks . | . . . . Fabricator Hacks . | . . . . Repair Station Hacks . | . . . . Recycling Unit Hacks . | . . . . Scanalyzer . | . . . . Garrison Access Hacks . | . . . . Unauthorized Hacks 1 | . 1 . . Terminals 1 | . 1 . . Botnet 1 | . 1 . . Fabricators . | . . . . Repair Stations . | . . . . Recycling Units . | . . . . Scanalyzers . | . . . . Garrison Access . | . . . . Data Cores Recovered . | . . . . Used . | . . . . Hacking Detections 1 | . 1 . . Full Trace Events . | . . . . Feedback Events . | . . . . Feedback Blocked . | . . . . Robot Schematics Acquired . | . . . . Robots Built . | . . . . Authchips . | . . . . Time . | . . . . Total Robot Build Rating . | . . . . Part Schematics Acquired . | . . . . Parts Built . | . . . . Authchips . | . . . . Time . | . . . . Total Part Build Rating . | . . . . Parts Repaired . | . . . . Time . | . . . . Parts Recycled . | . . . . Recycled Matter . | . . . . Retrieved Matter . | . . . . Retrieved Components . | . . . . Parts Scanalyzed . | . . . . Part Schematics Acquired . | . . . . Parts Damaged . | . . . . Bothacking | -11 -10 -10 -10 ------------ Run | Yrd Mat Min Sub Used RIF Installer . | . . . . Robots Hacked . | . . . . Non-combat . | . . . . Combat . | . . . . Robot Hacks Applied . | . . . . Relay Couplers Released . | . . . . Fabnet Peak Effective % . | . . . . Robots Rewired . | . . . . Allies Hacked . | . . . . Hacks Repelled . | . . . . Allies | -11 -10 -10 -10 -------- Run | Yrd Mat Min Sub Total Allies 3 | . . 3 . Largest Group 3 | . . 3 3 Highest-Rated Group 40 | . . 40 40 Highest-Rated Ally 16 | . . 16 16 Total Orders . | . . . . Ally Attacks 25 | . . . 25 Total Damage 371 | . . . 371 Kills 6 | . . . 6 Allies Corrupted . | . . . . Allies Melted . | . . . . Intel | -11 -10 -10 -10 ------- Run | Yrd Mat Min Sub Robot Analysis Total . | . . . . Derelict Logs Recovered 4 | . . 1 3 Drone Launches . | . . . . Drone Recoveries . | . . . . Exploration | -11 -10 -10 -10 ------------- Run | Yrd Mat Min Sub Turns Passed 2059 | 73 251 187 1548 Spaces Moved 1124 | 45 122 106 851 Core 3 | 3 . . . Treads 1121 | 42 122 106 851 Legs . | . . . . Wheels . | . . . . Hover . | . . . . Flight . | . . . . Fastest Speed 50 | 50 160 160 160 Average Speed 162 | 152 160 160 163 Slowest Speed 240 | 160 160 160 240 Overloaded Moves . | . . . . Propulsion Burnouts . | . . . . Robots Hopped . | . . . . Cave-ins Triggered . | . . . . Exploration Rate (%) 30 | 3 29 25 66 Regions Visited 3 Branch Regions 2 Pre-discovered Areas 3 | . . 1 2 Known Exits Taken 2 | . 1 1 . Unknown Exits Taken 1 | 1 . . . Scrap Searched 4 | . . . 4 Spaces Dug . | . . . . Terrain Destroyed . | . . . . Melee . | . . . . Projectile . | . . . . AOE . | . . . . Terrain Rammed . | . . . . Walls Destroyed . | . . . . Machines Disabled . | . . . . Actions | -11 -10 -10 -10 --------- Run | Yrd Mat Min Sub Total 1249 | 48 144 115 942 Wait 28 | . . 5 23 Move 1121 | 44 121 105 851 Hop . | . . . . Pick Up 13 | 1 1 . 11 Fast Attach 13 | 3 4 . 6 Attach 3 | . . . 3 Detach 4 | . . . 4 Swap . | . . . . Drop 5 | . . . 5 Fire 62 | . 18 5 39 Melee . | . . . . Ram . | . . . . Kick . | . . . . Crush . | . . . . Escape Stasis . | . . . . Rewire . | . . . . Trap . | . . . . Miscellaneous . | . . . . Route ------- -11/Scrapyard -10/Materials -10/Mines -10/Subcaves (discovered 2 exits: *Mat x2) History --------- Turn | Location | Event 14 | -11/Scrapyard | Discovered new exit (range 14) 74 | -11/Scrapyard | Entered Materials 309 | -10/Materials | Discovered new exit (range 11) 311 | -10/Materials | Build established: Mutant 324 | -10/Materials | Identified exit to Mines 325 | -10/Materials | Entered Mines 342 | -10/Mines | Met a Derelict bent on vengeance 387 | -10/Mines | Learned location of Zion (-7) 394 | -10/Mines | Assisted by bots powering up and referring to "LRC-V3" 503 | -10/Mines | Discovered new exit (range 7) 511 | -10/Mines | Identified exit to Subcaves 512 | -10/Mines | Entered Subcaves 512 | -10/Subcaves | Accompanied by 3 allies 813 | -10/Subcaves | Discovered new exit (range 7) 833 | -10/Subcaves | Identified exit to Materials 951 | -10/Subcaves | Learned 2 Materials zone layouts 1281 | -10/Subcaves | Core integrity fell below 50% 1929 | -10/Subcaves | Core integrity fell below 20% 2039 | -10/Subcaves | Learned location of Mines (-8) 2044 | -10/Subcaves | Discovered exit to Materials (range 8) 2060 | -10/Subcaves | Destroyed by 39-1ST(R) with Subdweller Beam Cannon Last Messages --------------- 01925_ Trooper 1a destroyed. 01928_ 4M-FGI(R) destroyed. 01928_ Switching to secondary target: HJ-0E4(R). 01933_ Discarded Signal Interpreter. 01951_ System corrupted: Substantial component data lost. 01957_ Mak. Laser destroyed. 01961_ Disposable Heat Sink melted. 01961_ Sub. Power Source melted. 01961_ Sub. Optics melted. 01961_ HJ-0E4(R) destroyed. 01965_ Acquired Particle Gun. 01967_ Acquired 25 matter. 01976_ Acquired Humpback. 01999_ Acquired Sub. Machine Gun. 02003_ Acquired 10 matter. 02039_ Acquired derelict log, extracted data. World map updated: -8/Mines. 02044_ EXIT=FOUND: MATERIALS 02055_ System corrupted: FCS attempts to trigger Particle Gun. 02055_ System corrupted: Particle Gun misfires. Map ----- +----------------------------------------------------+ | ?????????????????????????????????????????????????? | | ?????????????????????????????????????????????????? | | ?????????????????????????????????????????????????? | | ?????????????????????????????????????????????????? | | ?????????????????????????????????????????????????? | | ?????????????????????????????????????????????????? | | ?????????????????????????????????????????????????? | | ?????????????????????????????????????????????????? | | ?????????????????????????????????????????????????? | | ?????????????????????????????????????????????????? | | ?????????????????????????????????????????????????? | | ?????????????????????????????????????????????????? | | ?????????????????????????????????????????????????? | | ?????????????????????????????????????????????????? | | ????????????????????????????????????????????#????? | | ??????????????????????????????????????????## ???? | | ?????????????????????????????????????####? ??? | | ?????????????????????????????????????# ## ??? | | ?????????????????????????????????????# ???? | | ?????????????????????????????????????# ????? | | ?????????????????????????????????????? ?????? | | ??????????????????????????????????????# #??????? | | ???????????????????????????????######## ##?????? | | ?????????? ??????????????????### ## ##????? | | ??????????? %??????????###### #????# | | ???????????? %" ??????##@# # #????# | | ???????????????#"< #???# ## ##??## | | ????????????????#"" ##R # ! #### | | ?????????????????#"""" ## %& % | | ?????????????????#""""### # ### *! *% | | ????????????????# "???## ####?### ###### | | ????????????????## ?????######??????## ####????? | | ?????????????????#????????????????????####???????? | | ?????????????????????????????????????????????????? | | ?????????????????????????????????????????????????? | | ?????????????????????????????????????????????????? | | ?????????????????????????????????????????????????? | | ?????????????????????????????????????????????????? | | ?????????????????????????????????????????????????? | | ?????????????????????????????????????????????????? | | ?????????????????????????????????????????????????? | | ?????????????????????????????????????????????????? | | ?????????????????????????????????????????????????? | | ?????????????????????????????????????????????????? | | ?????????????????????????????????????????????????? | | ?????????????????????????????????????????????????? | | ?????????????????????????????????????????????????? | | ?????????????????????????????????????????????????? | | ?????????????????????????????????????????????????? | | | +----------------------------------------------------+ Best States ------------- Heat Dissipation 25 Energy Generation 15 Energy Capacity 200 Matter Stores 300 Matter Capacity 300 Sight Range 16 Terrain Scan Density 10 Armor Coverage 100 Evasion (%) 40 Recoil Reduction 2 Item Schematics ----------------- None Robot Schematics ------------------ None Fabricated ------------ Nothing Alien Tech Used ----------------- None Achievements -------------- None Challenges ------------ None Game ------ Seed ActiveInsulationRail Manual? 0 Play Time 00:09:28 Cumulative 132.9 hours Start 2025.01.12 @ 15:03:03 End 2025.01.12 @ 15:10:48 Sessions 1 Manual Loads 0 Difficulty Rogue Special Mode None Game No. 167 Rogue 161 Adventurer 6 Explorer 0 Win Type - Total 1 Types 1/0/0/0/0/0/0/0/0 Lore% 28 Gallery% 62 Achievement% 47 Wizard Run 0 Options --------- Layout 0 ASCII 0 Keyboard 1 Movement Numpad Keybinds 0 Fullscreen 0 Font 14/Smallcaps Map View 76x50 Zoom Use 0% Tactical HUD 1 Map Filters NONE Filters NONE Steam 1 RUN: e72d4a1c-cbd0-430e-9688-57e9abb63e8b